{"text_format":"1","workbook":"xlsx","n_sheets":3,"sheets":["ورقة1","ورقة2","ورقة3"],"not_rendered":{"charts":0,"images":0,"macros":1,"external_links":0,"defined_names":2,"comments":0,"pivot_tables":0},"unopened":[],"bounds":{"document_bytes":16777216,"sheet_cells":100000,"rows_first":2000,"rows_last":500,"rows_between":2000,"halvings":0,"cell_chars":16384,"cell_head_chars":4096},"cells_cut":0,"cells_raw":0,"read":"whole","date_system":"1900"}

{"sheet":"ورقة1","index":0,"n_rows":15,"n_cols":18,"rows_kept":15,"cut":false,"hidden":false,"merged":[]}
[]
[]
["احمد",{"$f":"VLOOKUP($A3,salim_rg,COLUMNS($A$1:A1)+1,0)","v":8},{"$f":"VLOOKUP($A3,salim_rg,COLUMNS($A$1:B1)+1,0)","v":59},{"$f":"VLOOKUP($A3,salim_rg,COLUMNS($A$1:C1)+1,0)","v":11}]
["اسلام",{"$f":"VLOOKUP($A4,salim_rg,COLUMNS($A$1:A1)+1,0)","v":5},{"$f":"VLOOKUP($A4,salim_rg,COLUMNS($A$1:B1)+1,0)","v":4},{"$f":"VLOOKUP($A4,salim_rg,COLUMNS($A$1:C1)+1,0)","v":4}]
["محمد",{"$f":"VLOOKUP($A5,salim_rg,COLUMNS($A$1:A1)+1,0)","v":5},{"$f":"VLOOKUP($A5,salim_rg,COLUMNS($A$1:B1)+1,0)","v":41},{"$f":"VLOOKUP($A5,salim_rg,COLUMNS($A$1:C1)+1,0)","v":5}]
["احمد",{"$f":"VLOOKUP($A6,salim_rg,COLUMNS($A$1:A1)+1,0)","v":8},{"$f":"VLOOKUP($A6,salim_rg,COLUMNS($A$1:B1)+1,0)","v":59},{"$f":"VLOOKUP($A6,salim_rg,COLUMNS($A$1:C1)+1,0)","v":11}]
["اسلام",{"$f":"VLOOKUP($A7,salim_rg,COLUMNS($A$1:A1)+1,0)","v":5},{"$f":"VLOOKUP($A7,salim_rg,COLUMNS($A$1:B1)+1,0)","v":4},{"$f":"VLOOKUP($A7,salim_rg,COLUMNS($A$1:C1)+1,0)","v":4}]
[]
["Total",{"$f":"SUM(B3:B7)","v":31},{"$f":"SUM(C3:C7)","v":167},{"$f":"SUM(D3:D7)","v":35},null,null,null,null,null,null,null,null,"Adel.Hanafy"]
[null,null,null,null,null,null,null,null,null,null,null,null,null,null,"احمد",8,59,11]
[null,null,null,null,null,null,null,null,null,null,null,null,null,null,"محمد",5,41,5]
[null,null,null,null,null,null,null,null,null,null,null,null,null,null,"محمود",8,20,8]
[null,null,null,null,null,null,null,null,null,null,null,null,null,null,"اسلام",5,4,4]
[null,null,null,null,null,null,null,null,null,null,null,null,null,null,null,"sum(B3:B10)","sum(C3:C10)","sum(D3:D10)"]
[null,null,null,null,null,null,{"$f":"VLOOKUP($A3,salim_rg,COLUMNS($A$1:A1)+1,0)","v":8},{"$f":"VLOOKUP($A3,salim_rg,COLUMNS($A$1:B1)+1,0)","v":59},{"$f":"VLOOKUP($A3,salim_rg,COLUMNS($A$1:C1)+1,0)","v":11}]

{"sheet":"ورقة2","index":1,"n_rows":0,"n_cols":0,"rows_kept":0,"cut":false,"hidden":false,"merged":[]}

{"sheet":"ورقة3","index":2,"n_rows":0,"n_cols":0,"rows_kept":0,"cut":false,"hidden":false,"merged":[]}